bitfinex-derivatives/quotes_SOLF0:USTF0_20241206
["timestamp","ask_amount","ask_price","bid_price","bid_amount"]
[1733451580203,3.0,243.4,243.29,8.77545619]
[1733451580506,5.053,243.4,243.33,2.0536]
[1733451581002,2.0531,243.39,243.31,2.0537]
[1733451581204,3.0,243.4,243.27,1.3357]
[1733451581506,3.0,243.4,243.29,8.77545619]
[1733451582310,2.0531,243.39,243.29,8.77545619]
[1733451583109,2.0533,243.36,243.27,1.3357]
[1733451583708,2.0533,243.36,243.3,2.0538]
[1733451586810,2.0532,243.37,243.31,2.0537]
[1733451587808,2.0533,243.36,243.31,2.0537]
[1733451588814,2.0533,243.36,243.3,2.0538]
[1733451590514,8.77545619,243.39,243.23,1.2536]
[1733451590709,8.77545619,243.35,243.21,0.41256]
[1733451590906,8.77545619,243.35,243.22,1.02774608]
[1733451591112,8.77545619,243.35,243.21,0.41256]
[1733451591313,1.0,243.36,243.32,8.77545619]
[1733451591607,3.0,243.45,243.33,6.44195252]
[1733451591811,3.0,243.44,243.34,9.80276147]
[1733451592013,3.0,243.43,243.33,1.2254]
[1733451592213,5.0529,243.42,243.35,2.0534]
[1733451592413,5.0529,243.42,243.33,1.2254]
[1733451592611,3.0,243.42,243.33,1.2254]
[1733451592815,3.0,243.42,243.34,2.0534]
[1733451592816,2.053,243.41,243.34,2.0534]
[1733451593012,3.0,243.42,243.33,1.2254]
[1733451593422,2.0531,243.39,243.33,1.2254]
[1733451594120,2.0531,243.39,243.34,2.0534]
[1733451594312,2.0531,243.39,243.33,1.2254]
[1733451594512,2.053,243.4,243.35,2.0533]
[1733451595526,3.0,243.42,243.33,1.2254]
[1733451596625,2.0529,243.41,243.36,2.0533]
[1733451597021,3.0,243.42,243.36,2.0533]
[1733451597220,3.0,243.42,243.37,2.0531]
[1733451597419,3.0,243.42,243.33,1.2254]
[1733451599224,8.77545619,243.49,243.33,10.00085619]
[1733451599432,2.0525,243.46,243.33,10.00085619]
[1733451600130,2.0526,243.45,243.4,2.0529]
[1733451604029,3.0,243.48,243.43,2.0527]
[1733451604534,2.0524,243.47,243.42,2.0528]
[1733451604730,5.0524,243.47,243.42,2.0528]
[1733451605032,3.0,243.47,243.33,10.00085619]
[1733451605233,2.0529,243.41,243.33,1.2254]
[1733451605533,3.0,243.4,243.33,1.2254]
[1733451605729,3.0,243.4,243.31,2.0537]
[1733451606130,4.2915,243.4,243.27,1.3356]
[1733451607233,4.2915,243.4,243.24,8.77545619]
[1733451607439,8.77545619,243.37,243.23,1.2788]
[1733451607630,10.82905619,243.33,243.24,2.0543]
[1733451607936,10.82905619,243.33,243.19,1.3386]
[1733451607937,2.98,243.32,243.19,1.3386]
[1733451608137,2.0538,243.3,243.24,2.0543]
[1733451608433,2.98,243.32,243.19,1.3386]
[1733451608636,2.98,243.32,243.18,2.5766]
[1733451608831,2.054,243.29,243.23,2.0544]
[1733451609130,2.98,243.32,243.18,2.5766]
[1733451609529,8.77545619,243.29,243.18,1.2788]
[1733451610335,2.0542,243.26,243.2,2.0546]
[1733451610529,2.98,243.25,243.2,2.0546]
[1733451610727,2.98,243.25,243.12,12.67815619]
[1733451611538,5.0343,243.25,243.19,2.0547]
[1733451612534,5.0343,243.25,243.12,12.67815619]
[1733451612535,2.98,243.25,243.12,12.67815619]
[1733451612734,2.0543,243.24,243.12,12.67815619]
[1733451613736,2.98,243.25,243.12,3.9027]
[1733451614035,2.0546,243.21,243.12,2.5749]
[1733451614244,8.77545619,243.21,243.02,1.2421]
[1733451614432,2.0551,243.15,243.03,1.02862864]
[1733451614635,2.98,243.14,243.02,10.01755619]
[1733451614830,2.98,243.13,243.02,10.01755619]
[1733451615139,1.2806,243.19,243.02,10.01755619]
[1733451615334,2.98,243.18,243.06,2.0558]
[1733451615540,2.0551,243.15,243.02,10.01755619]
[1733451615740,2.98,243.18,243.03,1.02874104]
[1733451615937,2.98,243.18,243.02,10.01755619]
[1733451616141,2.98,243.18,243.03,1.02873926]
[1733451616435,2.98,243.18,243.04,1.02874605]
[1733451616635,2.0552,243.14,243.07,2.0557]
[1733451617233,2.0551,243.15,243.07,2.0557]
[1733451617438,2.0551,243.15,243.02,10.01755619]
[1733451617642,4.23,243.18,243.03,2.67473571]
[1733451617843,4.23,243.18,243.04,1.0287445]
[1733451618041,4.23,243.18,243.05,1.0287445]
[1733451618243,4.23,243.18,243.02,10.01755619]
[1733451618541,1.25,243.18,243.08,8.77545619]
[1733451618743,2.98,243.17,243.09,1.02874995]
[1733451618941,2.98,243.16,243.1,1.0285006]
[1733451619140,2.98,243.15,243.11,1.0285006]
[1733451619448,2.98,243.14,243.12,1.02850644]
[1733451619645,2.0546,243.21,243.14,2.0551]
[1733451619845,2.98,243.2,243.14,2.0551]
[1733451620045,2.98,243.2,243.08,8.77545619]
[1733451620247,2.98,243.2,243.09,2.6740851]
[1733451620544,5.0347,243.2,243.1,2.6740851]
[1733451620746,5.0347,243.2,243.14,2.0551]
[1733451620938,5.0347,243.2,243.08,8.77545619]
[1733451621142,5.0347,243.2,243.09,2.67406778]
[1733451621443,5.0347,243.2,243.1,2.67406778]
[1733451621645,2.0547,243.19,243.11,2.67406778]
[1733451621841,2.98,243.2,243.13,2.0552]
[1733451622045,2.98,243.2,243.08,8.77545619]
[1733451622243,2.98,243.2,243.09,2.67412231]
[1733451622437,2.98,243.2,243.1,1.0285107]
[1733451622644,2.98,243.2,243.11,1.0285107]
[1733451622844,2.98,243.2,243.08,8.77545619]
[1733451623051,2.0548,243.19,243.09,2.67415375]
[1733451623244,2.98,243.2,243.1,1.02852067]
[1733451623540,2.0551,243.15,243.11,1.02852067]
[1733451623741,2.98,243.2,243.01,11.35955619]
[1733451623742,8.77545619,243.18,243.01,11.35955619]
[1733451623938,8.77545619,243.18,243.03,2.67468651]
[1733451624141,3.4778,243.19,243.05,2.0559]
[1733451624142,2.0555,243.1,243.05,2.0559]
[1733451624342,2.98,243.09,243.05,2.0559]
[1733451624849,2.98,243.09,243.04,2.0559]
[1733451625543,5.0356,243.09,243.04,2.0559]
[1733451625740,2.98,243.09,242.97,8.77545619]
[1733451626043,2.0557,243.08,242.97,8.77545619]
[1733451626242,2.98,243.09,242.98,1.02894039]
[1733451626443,2.98,243.09,243.01,2.0563]
[1733451626640,2.98,243.09,242.93,8.77545619]
[1733451626945,2.98,243.09,242.95,2.0567]
[1733451626946,8.77545619,243.06,242.95,2.0567]
[1733451627153,8.77545619,243.06,242.92,2.617]
[1733451627348,8.77545619,243.06,242.89,8.77545619]
[1733451627549,8.77545619,243.06,242.9,2.5554]
[1733451627943,2.0563,243.01,242.95,2.0567]
[1733451628147,2.0563,243.01,242.9,2.5554]
[1733451628148,2.98,243.0,242.9,2.5554]
[1733451628848,2.98,243.0,242.9,1.273]
[1733451629045,2.98,243.0,242.86,1.2538]
[1733451629253,2.98,243.0,242.89,2.0572]
[1733451629254,2.0568,242.95,242.89,2.0572]
[1733451629452,2.98,243.0,242.85,10.04845619]
[1733451629653,2.98,243.0,242.86,1.02947753]
[1733451629856,2.98,243.0,242.88,2.0573]
[1733451629857,2.0569,242.94,242.88,2.0573]
[1733451630050,2.98,242.93,242.88,2.0573]
[1733451630552,2.98,242.93,242.74,0.16672877]
[1733451630753,2.98,242.93,242.75,4.73623307]
[1733451631057,2.0575,242.86,242.79,2.0581]
[1733451631257,2.98,242.85,242.79,2.0581]
[1733451631755,2.98,242.85,242.78,2.0582]
[1733451631948,2.98,242.85,242.74,2.4872]
[1733451632150,2.98,242.85,242.75,2.67776429]
[1733451632359,2.98,242.85,242.76,1.02990934]
[1733451632655,2.98,242.85,242.77,1.02990934]
[1733451632851,5.0376,242.85,242.74,11.26265619]
[1733451633048,5.0376,242.85,242.75,1.02999757]
[1733451633049,2.98,242.85,242.75,1.02999757]
[1733451633248,2.98,242.85,242.76,1.02999757]
[1733451633462,5.0376,242.85,242.78,2.0581]
[1733451634050,2.98,242.85,242.78,2.0581]
[1733451634456,2.98,242.85,242.79,2.0581]
[1733451635753,5.0376,242.85,242.78,2.0582]
[1733451636853,5.0376,242.85,242.76,2.0583]
[1733451637052,5.0376,242.85,242.74,11.26265619]
[1733451637053,5.0376,242.85,242.77,1.02998028]
[1733451637260,5.0376,242.85,242.78,1.02998028]
[1733451637559,2.98,242.85,242.74,11.26265619]
[1733451637754,2.0577,242.84,242.75,2.67794907]
[1733451637960,2.0577,242.84,242.76,2.67794907]
[1733451638161,2.0577,242.84,242.77,1.02998041]
[1733451638363,2.0577,242.84,242.78,1.02998041]
[1733451638663,2.0577,242.84,242.79,1.02998041]
[1733451638863,2.0577,242.84,242.77,2.0583]
[1733451639063,2.0577,242.84,242.78,1.02997763]
[1733451639363,2.0577,242.84,242.79,1.02997763]
[1733451639567,2.0577,242.84,242.77,2.0583]
[1733451639863,2.98,242.85,242.78,1.02999107]
[1733451640064,2.98,242.85,242.79,1.02999107]
[1733451640263,2.98,242.85,242.8,1.02999107]
[1733451640460,2.98,242.85,242.77,2.0583]
[1733451640657,2.98,242.85,242.78,2.67790739]
[1733451640855,2.98,242.93,242.83,8.77545619]
[1733451641055,2.98,242.93,242.92,2.057]
[1733451641262,2.98,242.93,242.84,0.16420254]
[1733451641457,2.98,242.93,242.85,4.73594927]
[1733451641657,2.98,242.93,242.86,2.67684089]
[1733451641970,2.98,242.93,242.87,2.67684089]
[1733451642267,2.98,242.93,242.88,1.02955419]
[1733451642469,2.98,242.93,242.89,1.02955419]
[1733451642673,2.98,242.93,242.87,2.0574]
[1733451642967,2.98,242.93,242.88,1.02966353]
[1733451643169,1.47932909,245.22,242.89,1.02966353]
[1733451643467,2.98,242.98,242.9,2.67693314]
[1733451643769,2.0568,242.96,242.91,1.02966353]
[1733451643969,2.0568,242.96,242.92,1.02966353]
[1733451644167,2.0568,242.96,242.83,8.77545619]
[1733451644369,2.0568,242.95,242.88,2.0573]
[1733451644666,8.77545619,242.97,242.83,8.77545619]
[1733451644870,10.05485619,242.97,242.85,2.0575]
[1733451645068,2.057,242.93,242.86,1.02966135]
[1733451645371,2.057,242.93,242.83,8.77545619]
[1733451645372,10.05485619,242.97,242.79,8.77545619]
[1733451645566,2.0571,242.91,242.85,2.0576]
[1733451645767,2.98,242.9,242.79,8.77545619]
[1733451645970,2.98,242.9,242.8,2.67719553]
[1733451646167,2.98,242.9,242.81,2.67719553]
[1733451646367,5.0372,242.9,242.84,2.0577]
[1733451646574,5.0372,242.9,242.85,1.02969059]
[1733451646774,2.98,242.9,242.86,1.02969875]
[1733451647069,2.98,242.9,242.79,8.77545619]
[1733451647375,2.98,242.9,242.8,2.6772309]
[1733451647574,2.98,242.9,242.83,2.0577]
[1733451647771,2.98,242.9,242.79,8.77545619]
[1733451647972,2.98,242.9,242.75,10.09315619]
[1733451648272,8.77545619,242.89,242.76,2.67757897]
[1733451648472,8.77545619,242.89,242.77,1.02981895]
[1733451648679,8.77545619,242.89,242.75,1.3177]
[1733451648874,2.0576,242.86,242.78,2.0581]
[1733451649076,8.77545619,242.89,242.78,2.0581]
[1733451649477,9.77545619,242.89,242.78,2.0581]
[1733451650678,2.0577,242.85,242.78,2.0581]
[1733451651081,8.77545619,242.81,242.66,0.16496567]
[1733451651283,2.0583,242.77,242.67,2.67893861]
[1733451651482,2.98,242.8,242.68,2.67893861]
[1733451651677,2.98,242.8,242.7,2.0589]
[1733451651977,2.98,242.8,242.61,8.77545619]
[1733451651978,2.0584,242.76,242.61,8.77545619]
[1733451652187,8.77545619,242.72,242.71,1.03034875]
[1733451652484,11.75545619,242.72,242.57,0.16531405]
[1733451652786,2.98,242.72,242.58,1.64904636]
[1733451652978,2.98,242.72,242.59,1.64904636]
[1733451653181,2.98,242.72,242.6,1.64904636]
[1733451653376,8.77545619,242.69,242.56,2.5078]
[1733451653683,8.77545619,242.73,242.56,11.28325619]
[1733451653880,2.98,242.72,242.56,2.5078]
[1733451654180,2.0592,242.66,242.57,2.0599]
[1733451654380,14.0979341,242.71,242.56,2.5078]
[1733451654381,2.98,242.65,242.56,2.5078]
[1733451654582,2.98,242.64,242.59,2.0598]
[1733451654886,2.98,242.63,242.56,2.5078]
[1733451655078,2.98,242.62,242.56,2.5078]
[1733451655783,2.059,242.69,242.56,2.5078]
[1733451656086,2.98,242.68,242.57,1.64901743]
[1733451656387,2.98,242.67,242.65,2.0593]
[1733451656690,2.98,242.66,242.65,2.0593]
[1733451657081,14.0979341,242.79,242.69,2.059]
[1733451657281,2.98,242.78,242.56,2.5078]
[1733451657586,2.0587,242.72,242.63,2.0595]
[1733451657779,2.0587,242.72,242.56,2.5078]
[1733451657987,2.98,242.77,242.57,1.64885566]
[1733451658282,2.98,242.77,242.56,2.5078]
[1733451658283,2.0589,242.7,242.58,1.64885566]
[1733451658488,2.98,242.69,242.59,1.64885566]
[1733451658677,2.98,242.69,242.56,2.5078]
[1733451658878,2.98,242.69,242.57,1.64890716]
[1733451659081,2.98,242.69,242.65,2.0593]
[1733451659980,2.98,242.69,242.56,2.5078]
[1733451660181,2.98,242.68,242.61,14.0979341]
[1733451660387,2.98,242.68,242.62,1.64890477]
[1733451660587,2.98,242.68,242.63,1.64890477]
[1733451660787,2.98,242.68,242.67,2.0591]
[1733451661489,2.98,242.68,242.56,2.5078]
[1733451661886,2.98,242.68,242.57,1.64880424]
[1733451662183,2.98,242.68,242.58,1.64880424]
[1733451662384,2.98,242.68,242.59,1.64880424]
[1733451662686,2.98,242.68,242.67,2.0591]
[1733451666592,2.98,242.68,242.67,3.08945814]
[1733451668388,2.98,242.68,242.67,2.0591]
[1733451668593,3.329,242.8,242.67,2.678865]
[1733451668594,2.98,242.71,242.67,2.678865]
[1733451668798,2.98,242.72,242.68,6.500065]
[1733451669089,16.6403341,242.87,242.79,2.0581]
[1733451669392,2.98,242.83,242.68,3.8212]
[1733451669595,2.98,242.83,242.8,2.058]
[1733451670989,2.98,242.83,242.72,2.0587]
[1733451671194,2.98,242.83,242.68,5.89111311]
[1733451671395,2.98,242.83,242.69,2.67847422]
[1733451671595,2.98,242.83,242.7,1.03018239]
[1733451671796,2.98,242.83,242.71,1.03018239]
[1733451671992,2.98,242.83,242.68,5.89111311]
[1733451672199,2.98,242.82,242.69,2.67829011]
[1733451672397,2.98,242.82,242.68,5.89111311]
[1733451672598,2.98,242.82,242.69,2.67831796]
[1733451672897,1.58098,242.81,242.8,2.058]
[1733451674089,1.0,242.89,242.72,8.79603693]
[1733451674294,1.0,242.89,242.88,2.0574]
[1733451674493,2.98,242.91,242.81,1.2431]
[1733451674690,2.98,242.91,242.81,2.4918]
[1733451674899,2.98,242.91,242.9,2.0572]
[1733451676297,2.98,242.91,242.89,2.0573]
[1733451676497,2.98,242.91,242.81,2.4918]
[1733451676801,2.98,242.91,242.84,2.0577]
[1733451676997,2.98,242.91,242.81,2.4918]
[1733451677601,2.98,242.91,242.9,2.0572]
[1733451677902,2.98,242.91,242.82,2.01411461]
[1733451678105,2.98,242.91,242.84,8.79603693]
[1733451678298,2.98,242.91,242.9,2.0572]
[1733451679199,1.3016,242.99,242.85,2.01823303]
[1733451679406,2.49,243.03,242.88,8.79603693]
[1733451679407,2.98,242.98,242.88,8.79603693]
[1733451680102,2.98,242.98,242.97,2.0566]
[1733451680600,2.0557,243.08,243.03,2.0561]
[1733451680805,2.98,243.06,243.03,2.0561]
[1733451681301,2.98,243.06,242.93,1.212]
[1733451682405,2.98,243.06,243.02,2.0561]
[1733451682599,2.98,243.06,242.93,1.212]
[1733451682802,2.98,243.06,242.93,2.4777]
[1733451683597,2.98,243.06,243.03,2.0561]
[1733451686107,5.0359,243.06,243.0,2.0563]
[1733451686304,2.98,243.06,242.93,2.4777]
[1733451686703,2.98,243.06,243.05,2.0559]
[1733451687002,2.98,243.06,242.96,8.79603693]
[1733451687403,2.98,243.06,243.05,2.0559]
[1733451687605,8.79603693,243.18,243.05,2.0559]
[1733451687803,2.98,243.17,243.0,10.88831042]
[1733451688009,2.055,243.16,243.11,2.0554]
[1733451688303,2.98,243.17,243.0,10.88831042]
[1733451689105,5.0349,243.17,243.0,10.88831042]
[1733451689604,5.0349,243.17,243.12,2.0553]
[1733451689810,5.035,243.17,243.12,2.0553]
[1733451690109,5.035,243.17,243.02,8.79603693]
[1733451690406,2.0551,243.15,243.02,8.79603693]
[1733451690605,2.98,243.17,243.02,8.79603693]
[1733451690909,2.0552,243.14,243.07,2.0557]
[1733451691206,2.98,243.17,243.08,2.0557]
[1733451691409,2.98,243.17,243.02,8.79603693]
[1733451691611,2.0552,243.14,243.02,8.79603693]
[1733451692010,2.98,243.17,243.02,2.0562]
[1733451692214,2.0554,243.12,242.99,8.79603693]
[1733451692611,2.98,243.17,243.07,2.0557]
[1733451692812,2.98,243.17,242.99,8.79603693]
[1733451692813,8.79603693,243.14,242.99,8.79603693]
[1733451693011,1.2661,243.13,242.99,8.79603693]
[1733451693411,2.0554,243.11,242.99,8.79603693]
[1733451693709,2.98,243.1,242.99,8.79603693]
[1733451695115,2.98,243.1,243.06,2.0558]
[1733451696216,2.98,243.1,242.99,8.79603693]
[1733451697225,2.98,243.1,243.07,2.0557]
[1733451697426,2.98,243.1,242.99,8.79603693]
[1733451698621,2.98,243.1,243.07,2.0557]
[1733451699729,2.98,243.1,242.99,8.79603693]
[1733451700122,2.98,243.1,243.07,2.0557]
[1733451700428,2.98,243.1,242.99,8.79603693]
[1733451700827,2.98,243.1,243.08,2.0557]
[1733451701520,2.96,243.14,243.03,8.79603693]
[1733451701722,2.96,243.14,243.07,8.79603693]
[1733451701926,2.96,243.14,243.13,2.0553]
[1733451703120,2.4841,243.23,243.2,2.0547]
[1733451703324,45.78,243.21,243.2,2.0547]
[1733451704227,42.82,243.21,243.2,2.0547]
[1733451704424,45.78,243.21,243.2,2.0547]
[1733451704624,45.78,243.21,243.08,8.79603693]
[1733451705523,2.96,243.2,243.08,8.79603693]
[1733451706123,5.0148,243.2,243.14,2.0551]
[1733451706326,5.0148,243.2,243.08,8.79603693]
[1733451707029,5.0148,243.2,243.15,2.0551]
[1733451707423,2.96,243.2,243.15,2.0551]
[1733451707627,2.0548,243.19,243.15,2.0551]
[1733451708028,2.96,243.2,243.04,2.5815]
[1733451708427,2.96,243.2,243.04,1.327]
[1733451708628,2.0552,243.15,243.04,1.327]
[1733451709928,2.0552,243.15,243.0,8.79603693]
[1733451710130,1.2837,243.18,243.09,2.0555]
[1733451710131,2.0552,243.14,243.09,2.0555]
[1733451710332,2.96,243.13,243.09,2.0555]
[1733451710734,2.96,243.13,243.0,8.79603693]
[1733451710928,2.96,243.13,243.1,2.0555]
[1733451713234,2.0554,243.12,242.98,1.3281]
[1733451713537,2.0554,243.12,242.99,8.79603693]
[1733451714035,10.10513693,243.17,242.99,8.79603693]
[1733451714236,2.0553,243.13,243.08,2.0556]
[1733451714437,2.96,243.16,242.99,8.79603693]
[1733451714634,2.0553,243.13,243.07,2.0557]
[1733451714935,2.0553,243.13,242.99,8.79603693]
[1733451715337,2.0553,243.13,243.0,1.02873109]
[1733451715539,2.0554,243.12,243.08,2.0557]
[1733451715735,2.96,243.16,243.08,2.0557]
[1733451716739,2.0553,243.13,243.08,2.0557]
[1733451717535,2.0556,243.09,242.99,8.79603693]
[1733451717740,2.96,243.08,242.98,1.3281]
[1733451720340,2.0561,243.03,242.97,0.51849]
[1733451720546,2.96,243.08,242.97,0.51849]
[1733451720547,8.79603693,243.01,242.97,0.51849]
[1733451720737,2.96,243.0,242.97,0.51849]
[1733451720938,2.0565,242.98,242.97,0.51849]
[1733451721541,2.0565,242.99,242.97,0.51849]
[1733451721740,2.96,243.0,242.97,0.51849]
[1733451722645,2.0565,242.99,242.94,2.0568]
[1733451722849,2.96,243.0,242.91,1.3033]
[1733451723046,8.79603693,243.05,242.91,1.3033]
[1733451723243,2.96,243.04,242.96,8.79603693]
[1733451723449,2.96,243.04,243.03,2.0561]
[1733451723743,2.96,243.04,242.96,8.79603693]
[1733451724148,2.96,243.04,243.03,2.0561]
[1733451724552,1.2214,243.12,243.01,2.0562]
[1733451724747,1.2214,243.12,242.97,1.2922]
[1733451724748,2.96,243.11,242.97,1.2922]
[1733451725148,2.0556,243.1,243.05,2.0559]
[1733451725349,123.79603693,243.36,243.04,8.79603693]
[1733451725646,2.0553,243.13,243.08,2.0557]
[1733451725849,2.96,243.12,243.0,8.79603693]
[1733451726044,2.96,243.11,243.0,8.79603693]
[1733451726249,2.96,243.11,243.07,2.0557]
[1733451726649,2.96,243.11,243.01,1.2213]
[1733451726848,2.96,243.11,243.1,2.0555]
[1733451727151,2.96,243.11,243.01,1.2213]
[1733451727355,2.96,243.11,243.09,2.0556]
[1733451727850,2.96,243.11,243.1,2.0555]
[1733451728664,2.96,243.11,243.08,2.0556]
[1733451728850,2.96,243.11,243.01,1.2213]
[1733451729156,2.96,243.11,243.09,2.0555]
[1733451729353,2.055,243.17,243.04,8.79603693]
[1733451729556,1.2201,243.2,243.04,8.79603693]
[1733451729752,2.96,243.19,243.08,10.85173693]
[1733451729953,2.96,243.19,243.08,8.79603693]
[1733451730655,5.0148,243.19,243.08,8.79603693]
[1733451730854,2.96,243.19,243.08,8.79603693]
[1733451731354,2.96,243.19,243.09,1.2767]
[1733451731754,2.96,243.19,243.12,2.0554]
[1733451731955,2.96,243.19,243.09,1.2767]
[1733451732352,8.79603693,243.24,243.09,1.2767]
[1733451732559,2.96,243.2,243.12,8.79603693]
[1733451732760,2.96,243.2,243.13,1.3361]
[1733451732960,2.96,243.2,243.19,2.0548]
[1733451733461,8.79603693,243.32,243.2,2.0547]
[1733451733659,43.764,243.21,243.2,2.0547]
[1733451733858,2.96,243.21,243.2,2.0547]
[1733451734054,0.944,243.21,243.2,2.0547]
[1733451734359,0.944,243.21,243.16,8.79603693]
[1733451734360,1.2878,243.35,243.16,8.79603693]
[1733451734558,2.96,243.34,243.16,8.79603693]
[1733451734855,2.96,243.34,243.13,1.3361]
[1733451734856,2.0536,243.34,243.13,1.3361]
[1733451735059,1.2878,243.35,243.2,8.79603693]
[1733451735060,2.96,243.33,243.2,8.79603693]
[1733451735460,2.0537,243.32,243.27,2.0541]
[1733451735660,2.96,243.33,243.13,1.3361]
[1733451735962,2.0537,243.32,243.23,2.0543]
[1733451736159,2.96,243.33,243.13,1.3361]
[1733451736458,11.75603693,243.33,243.16,8.79603693]
[1733451736658,2.054,243.29,243.16,8.79603693]
[1733451737059,2.054,243.28,243.23,2.0544]
[1733451737261,11.75603693,243.33,243.23,2.0544]
[1733451737661,2.0539,243.29,243.23,2.0544]
[1733451737863,11.75603693,243.33,243.16,8.79603693]
[1733451738467,2.054,243.28,243.22,2.0545]
[1733451738966,11.75603693,243.33,243.16,8.79603693]
[1733451740363,8.79603693,243.29,243.13,1.3361]
[1733451740668,2.0543,243.25,243.17,2.0549]
[1733451740868,2.96,243.24,243.13,1.3361]
[1733451741059,2.96,243.24,243.12,8.79603693]
[1733451742463,2.96,243.24,243.19,2.0547]
[1733451742663,2.96,243.24,243.12,8.79603693]
[1733451743763,2.0545,243.22,243.17,2.0549]
[1733451744062,2.96,243.24,243.12,8.79603693]
[1733451744469,2.0547,243.2,243.15,2.055]
[1733451744970,2.0547,243.2,243.12,8.79603693]
[1733451745170,2.0547,243.2,243.08,8.79603693]
[1733451745672,2.0548,243.19,243.13,2.0552]
[1733451746169,2.0548,243.19,243.11,2.0554]
[1733451746471,1.2177,243.23,243.08,8.79603693]
[1733451746673,8.79603693,243.21,243.09,2.0556]
[1733451746872,8.79603693,243.17,242.94,0.3471]
[1733451747067,2.0555,243.11,242.98,8.79603693]
[1733451747273,5.5359,243.16,242.98,8.79603693]
[1733451747466,5.5359,243.16,242.97,2.0193249]
[1733451747467,5.5359,243.16,243.02,8.79603693]
[1733451747663,2.0553,243.13,243.02,8.79603693]
[1733451747971,2.0553,243.13,243.08,2.0557]
[1733451748373,2.0553,243.13,243.02,8.79603693]
[1733451749375,2.0553,243.13,243.08,2.0557]
[1733451751266,2.96,243.12,243.06,8.79603693]
[1733451751876,2.96,243.12,243.11,2.0554]
[1733451753468,2.96,243.12,243.02,8.79603693]
[1733451754072,2.96,243.12,243.09,2.0555]
[1733451754374,2.96,243.12,243.02,8.79603693]
[1733451754568,2.96,243.12,243.1,2.0554]
[1733451754776,2.96,243.12,243.02,8.79603693]
[1733451756776,2.96,243.12,243.09,2.0555]
[1733451757275,2.0554,243.11,243.07,2.0557]
[1733451757876,2.0554,243.11,243.02,8.79603693]
[1733451757877,2.0554,243.11,243.08,2.0557]
[1733451758072,5.0153,243.12,243.08,2.0557]
[1733451758373,2.96,243.12,242.98,9.33974693]
[1733451758680,2.0555,243.1,242.98,9.33974693]
[1733451758877,2.96,243.12,243.05,2.0559]
[1733451759275,2.0555,243.1,242.98,9.33974693]
[1733451759779,8.79603693,243.07,242.98,0.54371]
[1733451759970,1.2793,243.06,242.98,0.54371]
[1733451760171,2.96,243.05,242.98,0.54371]
[1733451761679,5.0159,243.05,243.0,2.0563]
[1733451762079,2.96,243.05,243.0,2.0563]
[1733451762279,2.056,243.04,242.99,2.0564]
[1733451764278,2.056,243.04,242.98,0.54371]
[1733451764279,2.96,243.05,242.98,0.54371]
[1733451766179,2.0564,242.99,242.98,0.54371]
[1733451766378,8.79603693,243.03,242.85,10.09003693]
[1733451766587,2.96,243.02,242.85,10.09003693]
[1733451766779,2.96,243.02,242.92,2.057]
[1733451766976,2.96,243.02,242.85,10.09003693]
[1733451767174,2.0566,242.97,242.9,2.0572]
[1733451767481,2.96,243.02,242.85,10.09003693]
[1733451767983,2.0567,242.96,242.85,10.09003693]
[1733451768184,2.96,242.95,242.85,10.09003693]
[1733451768383,2.0569,242.94,242.88,2.0574]
[1733451768586,2.96,242.95,242.85,8.79603693]
[1733451768976,2.057,242.93,242.86,2.0575]
[1733451769179,2.96,242.95,242.8,8.79603693]